bitfinex/quotes_BTCUSD_20240629
["timestamp","ask_amount","ask_price","bid_price","bid_amount"]
[1719651604977,0.00084,61089.0,61088.0,0.59375679]
[1719651605544,0.00084,61089.0,61088.0,0.79375679]
[1719651608526,0.00084,61089.0,61088.0,0.99375679]
[1719651612301,0.00084,61089.0,61088.0,0.97975679]
[1719651613171,0.00084,61089.0,61088.0,0.96575679]
[1719651614096,0.00084,61089.0,61088.0,0.97975679]
[1719651614506,0.00084,61089.0,61088.0,0.99375679]
[1719651614710,0.00084,61089.0,61088.0,0.96575679]
[1719651615115,0.00084,61089.0,61088.0,0.99375679]
[1719651617695,0.00084,61089.0,61088.0,1.00204991]
[1719651620637,0.00084,61089.0,61088.0,1.17484991]
[1719651620835,0.00084,61089.0,61088.0,0.95484991]
[1719651621069,0.00084,61089.0,61088.0,1.17484991]
[1719651621292,0.00084,61089.0,61088.0,1.37484991]
[1719651621493,0.00084,61089.0,61088.0,1.36084991]
[1719651621911,0.00084,61089.0,61088.0,1.34684991]
[1719651622076,0.00084,61089.0,61088.0,1.36084991]
[1719651622960,0.00084,61089.0,61088.0,1.37484991]
[1719651623598,0.00084,61089.0,61088.0,1.36084991]
[1719651623814,0.00084,61089.0,61088.0,1.37484991]
[1719651631086,0.00084,61089.0,61088.0,0.3088321]
[1719651631255,0.36024,61089.0,61088.0,0.6986321]
[1719651631487,1.367564,61089.0,61088.0,0.6986321]
[1719651631684,1.290576,61089.0,61088.0,0.70098945]
[1719651631857,1.290576,61089.0,61088.0,0.68698945]
[1719651632278,1.290576,61089.0,61088.0,0.70098945]
[1719651632479,1.290576,61089.0,61088.0,0.68698945]
[1719651632830,1.235749,61089.0,61088.0,0.68379431]
[1719651633611,1.235749,61089.0,61088.0,0.69779431]
[1719651634020,1.235749,61089.0,61088.0,0.53545533]
[1719651634252,1.235749,61089.0,61088.0,0.52145533]
[1719651634486,0.96167453,61089.0,61088.0,0.52145533]
[1719651634697,1.10739786,61089.0,61088.0,0.52145533]
[1719651634903,1.10739786,61089.0,61088.0,0.53545533]
[1719651635119,1.10739786,61089.0,61088.0,0.50745533]
[1719651635556,0.33188886,61089.0,61088.0,0.52145533]
[1719651635755,1.87428686,61089.0,61088.0,0.52145533]
[1719651636586,1.87428686,61089.0,61088.0,0.53545533]
[1719651636968,1.82476353,61089.0,61088.0,0.53545533]
[1719651637603,1.84986353,61089.0,61088.0,0.53637933]
[1719651637972,1.85070353,61089.0,61088.0,0.53637933]
[1719651639967,1.73960353,61089.0,61088.0,0.53637933]
[1719651640171,1.83580353,61089.0,61088.0,0.53637933]
[1719651648179,1.81070353,61089.0,61088.0,0.53637933]
[1719651652395,1.724538,61089.0,61088.0,0.53637933]
[1719651652556,1.630422,61089.0,61088.0,0.53637933]
[1719651654208,1.507943,61089.0,61088.0,0.53637933]
[1719651665193,0.10084,61089.0,61088.0,1.06336864]
[1719651665441,0.09704,61089.0,61088.0,1.08636864]
[1719651665864,0.09704,61089.0,61088.0,1.00481831]
[1719651666609,0.09704,61089.0,61088.0,0.99081831]
[1719651667061,0.09704,61089.0,61088.0,1.00481831]
[1719651667488,0.09704,61089.0,61088.0,0.99081831]
[1719651668109,0.09704,61089.0,61088.0,0.97681831]
[1719651668311,0.09704,61089.0,61088.0,1.11459254]
[1719651668511,0.09704,61089.0,61088.0,1.12859254]
[1719651668736,0.09704,61089.0,61088.0,1.14259254]
[1719651669347,0.09704,61089.0,61088.0,1.12859254]
[1719651669756,0.09704,61089.0,61088.0,1.14259254]
[1719651670614,0.09704,61089.0,61088.0,1.12859254]
[1719651670856,0.09704,61089.0,61088.0,1.14259254]
[1719651671184,0.09704,61089.0,61088.0,1.12859254]
[1719651671586,0.09704,61089.0,61088.0,1.14259254]
[1719651672436,0.09704,61089.0,61088.0,1.00351831]
[1719651672636,0.09704,61089.0,61088.0,0.69871831]
[1719651673043,0.654154,61089.0,61088.0,0.69871831]
[1719651673300,1.09121,61089.0,61088.0,0.69871831]
[1719651673539,1.216079,61089.0,61088.0,0.69871831]
[1719651675696,0.19704,61089.0,61088.0,0.69871831]
[1719651675897,1.368362,61089.0,61088.0,0.69871831]
[1719651678995,1.24978639,61089.0,61088.0,0.69871831]
[1719651679195,1.29307,61089.0,61088.0,0.69871831]
[1719651683135,0.896832,61089.0,61088.0,0.69871831]
[1719651683539,0.896832,61089.0,61088.0,0.71871831]
[1719651683743,0.863414,61089.0,61088.0,0.71871831]
[1719651683960,0.844512,61089.0,61088.0,0.71871831]
[1719651684161,0.803517,61089.0,61088.0,0.71871831]
[1719651684414,0.803517,61089.0,61088.0,0.69871831]
[1719651685163,0.571448,61089.0,61088.0,0.69871831]
[1719651689019,0.571448,61089.0,61088.0,0.71871831]
[1719651689605,0.571448,61089.0,61088.0,0.69871831]
[1719651693657,0.1962,61089.0,61088.0,0.69871831]
[1719651693873,0.0962,61089.0,61088.0,0.69871831]
[1719651694070,0.1962,61089.0,61088.0,0.69871831]
[1719651694482,0.972018,61089.0,61088.0,0.69871831]
[1719651694689,1.013013,61089.0,61088.0,0.69871831]
[1719651695354,0.916813,61089.0,61088.0,0.69871831]
[1719651697809,0.875818,61089.0,61088.0,0.69871831]
[1719651702227,0.876658,61089.0,61088.0,0.69871831]
[1719651704510,0.803116,61089.0,61088.0,0.69871831]
[1719651704930,0.477996,61089.0,61088.0,0.69871831]
[1719651705494,0.337824,61089.0,61088.0,0.71871831]
[1719651705618,0.326521,61089.0,61088.0,0.81686254]
[1719651706279,0.326521,61089.0,61088.0,0.79686254]
[1719651707466,0.326521,61089.0,61088.0,0.81686254]
[1719651708475,0.326521,61089.0,61088.0,0.79686254]
[1719651708995,0.326521,61089.0,61088.0,0.93486254]
[1719651711947,0.326521,61089.0,61088.0,0.83671831]
[1719651713809,0.326521,61089.0,61088.0,0.85671831]
[1719651714018,0.480721,61089.0,61088.0,0.03637933]
[1719651714225,0.480721,61089.0,61088.0,0.03631779]
[1719651714226,0.500721,61089.0,61088.0,0.03631779]
[1719651714473,0.60319259,61089.0,61088.0,0.028924]
[1719651714673,0.58319259,61089.0,61088.0,0.028924]
[1719651714833,0.58319259,61089.0,61088.0,0.014924]
[1719651714834,0.60319259,61089.0,61088.0,0.014924]
[1719651715637,0.64849754,61089.0,61088.0,0.014924]
[1719651716478,0.64849754,61089.0,61088.0,0.000924]
[1719651716890,0.64949754,61089.0,61088.0,0.000924]
[1719651719607,0.60703692,61089.0,61088.0,0.000924]
[1719651719807,0.56173197,61089.0,61088.0,0.000924]
[1719651720029,0.56273197,61089.0,61088.0,0.000924]
[1719651720433,0.480721,61089.0,61088.0,0.000924]
[1719651720666,0.326521,61089.0,61088.0,0.000924]
[1719651720897,0.327521,61089.0,61088.0,0.000924]
[1719651721112,0.327521,61089.0,61088.0,0.01001567]
[1719651721439,0.326521,61089.0,61088.0,0.01001567]
[1719651722954,0.326521,61089.0,61088.0,0.01201567]
[1719651723832,0.326521,61089.0,61088.0,0.01501567]
[1719651725902,0.10084,61089.0,61088.0,0.01501567]
[1719651726202,0.00084,61089.0,61088.0,0.01501567]
[1719651726521,1.525503,61089.0,61088.0,0.01501567]
[1719651728228,1.486365,61089.0,61088.0,0.01501567]
[1719651728431,1.057336,61089.0,61088.0,0.01501567]
[1719651735680,1.525503,61089.0,61088.0,0.01501567]
[1719651736797,1.382966,61089.0,61088.0,0.01501567]
[1719651744169,1.38288866,61089.0,61088.0,0.01501567]
[1719651746966,0.10076266,61089.0,61088.0,0.01501567]
[1719651747115,0.00076266,61089.0,61088.0,0.01501567]
[1719651747311,1.49088766,61089.0,61088.0,0.01501567]
[1719651747737,1.47315866,61089.0,61088.0,0.01501567]
[1719651755217,1.47315866,61089.0,61088.0,0.005924]
[1719651761017,1.47315866,61089.0,61088.0,0.01247637]
[1719651762192,1.21587324,61089.0,61088.0,0.01247637]
[1719651762402,1.268141,61090.0,61088.0,0.01247637]
[1719651762577,1.268141,61089.0,61088.0,0.01247637]
[1719651763189,1.268141,61089.0,61088.0,0.00947637]
[1719651764242,1.368141,61089.0,61088.0,0.00947637]
[1719651764826,1.368141,61089.0,61088.0,0.01047637]
[1719651765178,1.368141,61089.0,61088.0,0.00947637]
[1719651765384,0.1,61089.0,61088.0,0.00947637]
[1719651765588,1.368141,61090.0,61088.0,0.01147637]
[1719651765909,1.268141,61089.0,61088.0,0.01147637]
[1719651766113,1.368141,61089.0,61088.0,0.01147637]
[1719651766472,1.368141,61089.0,61088.0,0.00947637]
[1719651766680,1.368141,61089.0,61088.0,0.00747637]
[1719651767711,1.368141,61089.0,61088.0,0.00676437]
[1719651767911,1.368141,61089.0,61088.0,0.00976437]
[1719651768119,1.368981,61089.0,61088.0,0.00976437]
[1719651768452,1.368981,61089.0,61088.0,0.00876437]
[1719651768831,1.368981,61089.0,61088.0,0.01076437]
[1719651769833,1.368981,61089.0,61088.0,0.11876437]
[1719651777350,0.10084,61089.0,61088.0,0.11876437]
[1719651777547,0.00084,61089.0,61088.0,0.11876437]
[1719651777962,1.268981,61089.0,61088.0,0.11876437]
[1719651778169,1.368981,61089.0,61088.0,0.11876437]
[1719651783388,1.320376,61089.0,61088.0,0.11876437]
[1719651783839,1.23495,61089.0,61088.0,0.25326437]
[1719651786263,1.234239,61089.0,61088.0,0.25326437]
[1719651786468,1.234239,61089.0,61088.0,0.11876437]
[1719651788112,1.234239,61089.0,61088.0,0.01076437]
[1719651790387,1.254539,61089.0,61088.0,0.01076437]
[1719651790514,1.389839,61089.0,61088.0,0.01076437]
[1719651790956,1.389839,61089.0,61088.0,0.004212]
[1719651791548,0.255729,61089.0,61088.0,0.000212]
[1719651791936,0.256729,61089.0,61088.0,0.000212]
[1719651792136,1.52487,61089.0,61088.0,0.000212]
[1719651794828,1.52387,61089.0,61088.0,0.000212]
[1719651795268,1.52487,61089.0,61088.0,0.000212]
[1719651796909,1.52387,61089.0,61088.0,0.000212]
[1719651797611,1.69918,61089.0,61088.0,0.000212]
[1719651797819,1.86251898,61089.0,61088.0,0.000212]
[1719651797965,1.87833224,61089.0,61088.0,0.000212]
[1719651798173,1.93230154,61089.0,61088.0,0.000212]
[1719651798376,1.93130154,61089.0,61088.0,0.000212]
[1719651798744,1.93130154,61089.0,61088.0,0.001212]
[1719651800140,1.93130154,61089.0,61088.0,0.000212]
[1719651800357,1.93230154,61089.0,61088.0,0.000212]
[1719651800713,1.93230154,61089.0,61088.0,0.00114877]
[1719651801072,1.93130154,61089.0,61088.0,0.00114877]
[1719651801278,1.93230154,61089.0,61088.0,0.00214877]
[1719651802487,2.13230154,61089.0,61088.0,0.00214877]
[1719651802718,2.16897133,61089.0,61088.0,0.00214877]
[1719651803710,2.56897133,61089.0,61088.0,0.00014877]
[1719651803911,2.56797133,61089.0,61088.0,0.00114877]
[1719651804148,2.56897133,61089.0,61088.0,0.00214877]
[1719651806763,0.02,61076.0,61069.0,0.000924]
[1719651806969,0.0961,61070.0,61069.0,0.000924]
[1719651807128,1.364241,61070.0,61069.0,0.000924]
[1719651807327,0.0961,61070.0,61069.0,0.000924]
[1719651808173,1.364241,61070.0,61069.0,0.004924]
[1719651808381,1.464241,61070.0,61069.0,0.000924]
[1719651808782,1.464241,61070.0,61069.0,0.017924]
[1719651810247,1.464241,61070.0,61069.0,0.012924]
[1719651810373,1.464241,61070.0,61069.0,0.024924]
[1719651815025,1.6126651,61070.0,61069.0,0.024924]
[1719651815217,1.6126651,61070.0,61063.0,0.113]
[1719651815218,1.6666344,61070.0,61063.0,0.113]
[1719651815451,0.0961,61067.0,61063.0,0.113]
[1719651815612,1.364241,61067.0,61063.0,0.113]
[1719651815814,1.464241,61067.0,61063.0,0.113]
[1719651816189,1.49911998,61067.0,61066.0,0.6392]
[1719651816554,1.49911998,61067.0,61066.0,0.64547645]
[1719651817295,1.49911998,61067.0,61066.0,0.65747645]
[1719651817500,1.49911998,61067.0,61066.0,0.66847645]
[1719651818058,1.49911998,61067.0,61066.0,0.64547645]
[1719651818235,1.49911998,61067.0,61066.0,0.64947645]
[1719651818464,1.49911998,61067.0,61066.0,0.65247645]
[1719651818643,1.464241,61067.0,61066.0,0.65247645]
[1719651819447,1.464241,61067.0,61066.0,0.76547645]
[1719651822469,1.59578701,61067.0,61066.0,0.76547645]
[1719651823051,1.59578701,61067.0,61066.0,0.62627645]
[1719651823435,1.59578701,61067.0,61066.0,0.50927645]
[1719651823550,1.59578701,61067.0,61066.0,0.51027645]
[1719651823753,1.59578701,61067.0,61066.0,0.51327645]
[1719651824138,1.59578701,61067.0,61066.0,0.50627645]
[1719651824487,1.59678701,61067.0,61066.0,0.50627645]
[1719651826624,1.59578701,61067.0,61066.0,0.50627645]
[1719651827671,1.59678701,61067.0,61066.0,0.50627645]
[1719651829702,1.59678701,61067.0,61066.0,0.00627645]
[1719651829991,0.02,61066.0,61064.0,0.140124]
[1719651830194,1.388141,61066.0,61064.0,0.140124]
[1719651830599,1.268141,61065.0,61064.0,0.140124]
[1719651830728,1.368141,61065.0,61064.0,0.140124]
[1719651831172,1.368141,61065.0,61064.0,0.141124]
[1719651831371,1.368141,61065.0,61064.0,0.142124]
[1719651832954,1.368141,61065.0,61064.0,0.140124]
[1719651833334,1.43295465,61065.0,61064.0,0.144124]
[1719651833743,1.43295465,61065.0,61064.0,0.15040323]
[1719651833962,1.43295465,61065.0,61064.0,0.14740323]
[1719651834158,1.43295465,61065.0,61064.0,0.14940323]
[1719651835500,1.368141,61065.0,61064.0,0.01020323]
[1719651836548,1.368141,61065.0,61064.0,0.00720323]
[1719651836755,0.02,61064.0,61061.0,0.1152]
[1719651836967,0.0961,61062.0,61061.0,0.1152]
[1719651837173,1.4382103,61062.0,61061.0,0.1152]
[1719651837402,1.5382103,61062.0,61061.0,0.1152]
[1719651838030,1.5382103,61062.0,61061.0,0.1172]
[1719651838238,1.5382103,61062.0,61061.0,0.1152]
[1719651838436,1.5382103,61062.0,61061.0,0.1202]
[1719651838860,1.5182103,61062.0,61061.0,0.1202]
[1719651839277,1.5182103,61062.0,61061.0,0.1252]
[1719651840098,0.2500693,61062.0,61061.0,0.1252]
[1719651840348,1.73076936,61062.0,61061.0,0.01]
[1719651840562,1.73076936,61062.0,61058.0,0.1152]
[1719651840778,0.0961,61059.0,61058.0,0.1152]
[1719651840993,1.364241,61059.0,61058.0,0.1152]
[1719651841200,1.464241,61059.0,61058.0,0.1152]
[1719651841615,1.464241,61059.0,61058.0,0.1202]
[1719651841826,1.464241,61059.0,61058.0,0.1252]
[1719651842030,1.464241,61059.0,61058.0,0.1202]
[1719651842448,1.465241,61059.0,61058.0,0.1292]
[1719651842659,1.465241,61059.0,61058.0,0.1562]
[1719651842874,1.465241,61059.0,61058.0,0.1512]
[1719651843962,1.466241,61059.0,61058.0,0.1562]
[1719651845279,1.486241,61059.0,61058.0,0.1562]
[1719651845502,1.476241,61059.0,61058.0,0.1562]
[1719651846441,1.262589,61059.0,61058.0,0.1562]
[1719651846653,1.348689,61059.0,61058.0,0.16285573]
[1719651847319,1.348689,61059.0,61058.0,0.27325573]
[1719651849092,1.252589,61059.0,61058.0,0.27325573]
[1719651849270,1.348689,61059.0,61058.0,0.27325573]
[1719651854118,1.252589,61059.0,61058.0,0.27325573]
[1719651854343,1.348689,61059.0,61058.0,0.27325573]
[1719651854550,1.34862144,61059.0,61058.0,0.27325573]
[1719651862694,1.06558216,61059.0,61058.0,0.27325573]
[1719651862911,0.0961,61059.0,61058.0,0.27325573]
[1719651863367,1.161683,61059.0,61058.0,0.27325573]
[1719651864071,1.161683,61059.0,61058.0,0.27417973]
[1719651864376,1.162523,61059.0,61058.0,0.27417973]
[1719651864994,1.262523,61059.0,61058.0,0.27417973]
[1719651891581,1.166423,61059.0,61058.0,0.27417973]
[1719651891794,1.262523,61059.0,61058.0,0.27417973]
[1719651896447,1.262523,61059.0,61058.0,0.27346973]
[1719651900286,1.166423,61059.0,61058.0,0.27346973]
[1719651900496,0.733879,61059.0,61058.0,0.27346973]
[1719651900695,0.829979,61059.0,61058.0,0.27346973]
[1719651902922,0.633879,61059.0,61058.0,0.43580871]
[1719651903138,0.00084,61059.0,61058.0,0.45880871]
[1719651903388,0.09694,61059.0,61058.0,0.47880871]
[1719651903583,0.09694,61059.0,61058.0,0.58481993]
[1719651904220,0.09694,61059.0,61058.0,0.57152993]
[1719651904420,0.09694,61059.0,61058.0,0.58152993]
[1719651904645,0.09894,61059.0,61058.0,0.59152993]
[1719651904847,0.09894,61059.0,61058.0,0.58152993]
[1719651905038,0.09894,61059.0,61058.0,0.59252993]
[1719651905236,0.09994,61059.0,61058.0,0.59252993]
[1719651905661,0.09894,61059.0,61058.0,0.58252993]
[1719651905865,0.09894,61059.0,61058.0,0.47651871]
[1719651906065,0.09894,61059.0,61058.0,0.45651871]
[1719651906268,0.09994,61059.0,61058.0,0.46651871]
[1719651906491,0.09994,61059.0,61058.0,0.48651871]
[1719651911053,0.09994,61059.0,61058.0,0.46651871]
[1719651911433,0.09994,61059.0,61058.0,0.59130093]
[1719651913907,0.00384,61059.0,61058.0,0.59130093]
[1719651914114,0.09994,61059.0,61058.0,0.59130093]
[1719651914314,0.09994,61059.0,61058.0,0.48651871]
[1719651928490,0.00384,61059.0,61058.0,0.48651871]
[1719651928816,0.00384,61059.0,61058.0,0.88651871]
[1719651931544,0.00384,61059.0,61058.0,0.68885828]
[1719651931979,0.00384,61059.0,61058.0,0.88885828]
[1719651932421,0.003132,61059.0,61058.0,0.88885828]
[1719651934112,0.003132,61059.0,61058.0,0.68885828]
[1719651934338,0.003132,61059.0,61058.0,0.88885828]
[1719651934482,0.003132,61059.0,61058.0,0.68885828]
[1719651935534,0.003132,61059.0,61058.0,0.88885828]
[1719651938379,0.02855565,61071.0,61070.0,0.5]
[1719651938646,0.12465565,61071.0,61070.0,0.68533898]
[1719651938881,0.12465565,61071.0,61070.0,0.69432031]
[1719651939083,0.12465565,61071.0,61070.0,0.79642269]
[1719651940291,0.12465565,61071.0,61070.0,0.80042269]
[1719651940500,0.22465565,61071.0,61070.0,0.80042269]
[1719651940727,0.22465565,61071.0,61070.0,0.80442269]
[1719651942606,0.22465565,61071.0,61070.0,0.70232031]
[1719651945102,1.29023865,61071.0,61070.0,0.70232031]
[1719651948422,1.261683,61071.0,61070.0,0.70232031]
[1719651948609,1.395783,61071.0,61070.0,0.01698133]
[1719651948817,1.395783,61071.0,61070.0,0.008]
[1719651950133,1.395783,61071.0,61070.0,0.004]
[1719651950327,1.395783,61071.0,61070.0,0.002]
[1719651950743,1.395783,61071.0,61070.0,0.003]
[1719651951082,1.395783,61071.0,61070.0,0.002]
[1719651951485,1.395783,61071.0,61070.0,0.005]
[1719651958093,1.395783,61071.0,61070.0,0.003]
[1719651958295,0.1309,61070.0,61063.0,0.5]
[1719651958535,0.1,61069.0,61064.0,0.18533898]
[1719651958739,0.0961,61065.0,61064.0,0.19432803]
[1719651958936,0.213,61065.0,61064.0,0.19432803]
[1719651959117,0.327,61065.0,61064.0,0.19432803]
[1719651959316,1.392583,61065.0,61064.0,0.19432803]
[1719651959741,1.07523407,61065.0,61064.0,0.19432803]
[1719651959940,1.17133407,61065.0,61064.0,0.19432803]
[1719651961189,1.17133407,61065.0,61064.0,0.20532803]
[1719651961190,1.162683,61065.0,61064.0,0.20532803]
[1719651961410,1.163683,61065.0,61064.0,0.21532803]
[1719651961567,1.162683,61065.0,61064.0,0.20532803]
[1719651961768,1.261683,61065.0,61064.0,0.19432803]
[1719651961969,1.262683,61065.0,61064.0,0.20432803]
[1719651962181,1.262683,61065.0,61064.0,0.19432803]
[1719651963378,1.167583,61065.0,61064.0,0.28663149]
[1719651963544,1.093354,61065.0,61064.0,0.29663149]
[1719651963749,1.092354,61065.0,61064.0,0.29663149]
[1719651963975,1.091354,61065.0,61064.0,0.27563149]
[1719651964182,1.092354,61065.0,61064.0,0.28563149]
[1719651964379,1.092354,61065.0,61064.0,0.28663149]
[1719651964380,1.091354,61065.0,61064.0,0.28663149]
[1719651964787,1.091354,61065.0,61064.0,0.28563149]
[1719651965289,1.092354,61065.0,61064.0,0.29663149]
[1719651965985,1.092354,61065.0,61064.0,0.02998905]
[1719651966227,1.101954,61065.0,61064.0,0.02998905]
[1719651966873,1.100954,61065.0,61064.0,0.01998905]
[1719651966989,1.100954,61065.0,61064.0,0.01898905]
[1719651967191,1.100954,61065.0,61063.0,0.5]
[1719651967394,1.100954,61065.0,61064.0,0.011]
[1719651967395,0.2077,61065.0,61064.0,0.011]
[1719651967595,0.2087,61065.0,61064.0,0.02998934]
[1719651967797,0.2077,61065.0,61064.0,0.01898934]
[1719651968083,0.2077,61065.0,61064.0,0.02998934]
[1719651968233,0.2087,61065.0,61064.0,0.02998934]
[1719651968434,0.2087,61065.0,61064.0,0.021]
[1719651968753,1.274283,61065.0,61064.0,0.021]
[1719651972931,1.274283,61065.0,61064.0,0.016]
[1719651976573,1.274283,61065.0,61064.0,0.02499364]
[1719651980634,1.264683,61065.0,61064.0,0.02499364]
[1719651980984,1.007924,61065.0,61064.0,0.02499364]
[1719651981189,1.104024,61065.0,61064.0,0.02499364]
[1719651983107,1.204024,61065.0,61064.0,0.02499364]
[1719651988963,1.107924,61065.0,61064.0,0.28429364]
[1719651989195,1.204024,61065.0,61064.0,0.28429364]
[1719651990659,1.107924,61065.0,61064.0,0.28429364]
[1719651990855,1.204024,61065.0,61064.0,0.44402646]
[1719651990983,1.107924,61065.0,61064.0,0.3655971]
[1719651991184,1.204024,61065.0,61064.0,0.3655971]
[1719651991811,1.204024,61065.0,61064.0,0.3665211]
[1719651992019,1.204864,61065.0,61064.0,0.28521764]
[1719651994318,0.935881,61065.0,61064.0,0.28521764]
[1719652002390,0.935881,61065.0,61064.0,0.16641764]
[1719652006503,0.935881,61065.0,61064.0,0.02591764]
[1719652018937,1.09821998,61065.0,61064.0,0.02591764]
[1719652019141,1.09821998,61065.0,61045.0,0.258324]
[1719652019142,0.0207,61059.0,61045.0,0.258324]
[1719652019472,0.02,61053.0,61048.0,0.48811044]
[1719652019673,0.0961,61049.0,61046.0,0.01163011]
[1719652020027,0.738941,61048.0,61045.0,0.258324]
[1719652020249,0.738941,61048.0,61047.0,0.01162864]
[1719652020449,0.1961,61048.0,61047.0,0.00712864]
[1719652020804,0.935041,61048.0,61045.0,0.000924]
[1719652021028,0.663079,61047.0,61046.0,0.0128951]
[1719652021205,0.763079,61047.0,61046.0,0.0128951]
[1719652021631,0.763079,61047.0,61046.0,0.0098951]
[1719652021868,0.763079,61047.0,61045.0,0.000924]
[1719652022060,0.763079,61047.0,61046.0,0.0108951]
[1719652022061,0.1,61047.0,61046.0,0.0108951]
[1719652022303,0.1,61047.0,61046.0,0.0098951]
[1719652022438,0.1,61047.0,61046.0,0.1474]
[1719652022643,0.698485,61047.0,61046.0,0.1662951]
[1719652023569,0.699485,61047.0,61046.0,0.1742951]
[1719652026070,0.699485,61047.0,61046.0,0.1752191]
[1719652027502,0.699485,61047.0,61046.0,0.2886191]
[1719652028948,0.355356,61047.0,61046.0,0.2886191]
[1719652029089,0.355356,61047.0,61046.0,0.47395808]
[1719652029090,0.1981,61047.0,61046.0,0.47395808]
[1719652029295,0.0981,61047.0,61046.0,0.47395808]
[1719652033334,0.002,61047.0,61046.0,0.47395808]
[1719652033664,0.002,61047.0,61046.0,0.49395808]
[1719652033804,0.0981,61047.0,61046.0,0.60157663]
[1719652035529,0.0981,61047.0,61046.0,0.49395808]
[1719652036308,0.002,61047.0,61046.0,0.49395808]
[1719652036492,0.0981,61047.0,61046.0,0.49395808]
[1719652037135,0.0971,61047.0,61046.0,0.48595808]
[1719652037336,0.0971,61047.0,61046.0,0.49495808]
[1719652037491,0.0971,61047.0,61046.0,0.48595808]
[1719652037900,0.0971,61047.0,61046.0,0.48895808]
[1719652038155,0.0981,61047.0,61046.0,0.49795808]
[1719652039567,0.0981,61047.0,61046.0,0.50295808]
[1719652039781,0.0981,61047.0,61046.0,0.51695808]
[1719652040507,0.0981,61047.0,61046.0,0.50295808]
[1719652040831,0.0981,61047.0,61046.0,0.51695808]
[1719652049777,0.0981,61047.0,61046.0,0.49695808]
[1719652050411,0.0981,61047.0,61046.0,0.51695808]
[1719652050628,0.0981,61047.0,61046.0,0.49695808]
[1719652050799,0.0981,61047.0,61046.0,0.51695808]
[1719652053043,0.0981,61047.0,61046.0,0.49695808]
[1719652057239,0.0981,61047.0,61046.0,0.51695808]
[1719652058886,0.0981,61047.0,61046.0,0.49695808]
[1719652067149,0.0981,61047.0,61046.0,0.51695808]
[1719652073301,0.0981,61047.0,61046.0,0.49695808]
[1719652073557,0.0981,61047.0,61046.0,0.51695808]
[1719652077606,0.2,61074.0,61057.0,0.07578427]
[1719652077800,0.2,61074.0,61067.0,0.08130346]
[1719652077801,0.738941,61073.0,61067.0,0.08130346]
[1719652078007,0.0961,61068.0,61067.0,0.08130346]
[1719652078224,0.835041,61068.0,61067.0,0.08130346]
[1719652079045,0.835041,61068.0,61067.0,0.08230346]
[1719652079715,0.835041,61068.0,61067.0,0.08130346]
[1719652079874,0.935041,61068.0,61067.0,0.08130346]
[1719652080139,0.942041,61068.0,61067.0,0.08230346]
[1719652081018,0.942041,61068.0,61067.0,0.08330346]
[1719652081251,0.946041,61068.0,61067.0,0.002]
[1719652084992,0.776278,61068.0,61067.0,0.002]
[1719652085191,0.872378,61068.0,61067.0,0.002]
[1719652088663,1.03471698,61068.0,61057.0,0.07578427]
[1719652088832,0.0961,61058.0,61057.0,0.07578427]
[1719652089194,0.768378,61058.0,61057.0,0.07578427]
[1719652089319,0.868378,61058.0,61057.0,0.07578427]
[1719652090533,0.868378,61058.0,61057.0,0.08078427]
[1719652090746,0.868378,61058.0,61057.0,0.08178427]
[1719652091137,0.868378,61058.0,61057.0,0.08078427]
[1719652091589,0.868378,61058.0,61057.0,0.08678427]
[1719652091795,0.869218,61058.0,61057.0,0.08178427]
[1719652092059,0.869218,61058.0,61057.0,0.07678427]
[1719652092232,0.869218,61058.0,61057.0,0.07878427]
[1719652095824,0.869218,61058.0,61057.0,0.08757794]
[1719652103582,0.869218,61058.0,61057.0,0.08751343]
[1719652117143,0.869218,61058.0,61057.0,0.03751343]
[1719652119803,0.19694,61058.0,61057.0,0.03751343]
[1719652120609,0.869218,61058.0,61057.0,0.03751343]
[1719652120812,0.19694,61058.0,61057.0,0.03751343]
[1719652121279,0.44574201,61058.0,61057.0,0.03751343]
[1719652121465,0.641843,61058.0,61057.0,0.03751343]
[1719652124580,0.641843,61058.0,61057.0,0.03843743]
[1719652125567,0.642683,61058.0,61057.0,0.03843743]
[1719652126543,0.39103847,61058.0,61057.0,0.03843743]
[1719652126747,0.391038,61058.0,61057.0,0.03843743]
[1719652127999,0.1,61058.0,61057.0,0.03843743]
[1719652128783,0.1961,61058.0,61057.0,0.03843743]
[1719652128981,0.2961,61058.0,61057.0,0.03843743]
[1719652160167,0.29694,61058.0,61057.0,0.03843743]
[1719652182648,0.29694,61058.0,61057.0,0.30563743]
[1719652183085,0.29694,61058.0,61057.0,0.30363743]
[1719652183315,0.29894,61058.0,61057.0,0.30263743]
[1719652183798,0.29894,61058.0,61057.0,0.32263743]
[1719652183799,0.30194,61058.0,61057.0,0.32263743]
[1719652184027,0.30194,61058.0,61057.0,0.34563743]
[1719652184272,0.30194,61058.0,61057.0,0.32663743]
[1719652184273,0.30794,61058.0,61057.0,0.32663743]
[1719652184494,0.30594,61058.0,61057.0,0.34663743]
[1719652184725,0.30194,61058.0,61057.0,0.34663743]
[1719652184951,0.30194,61058.0,61057.0,0.35063743]
[1719652185395,0.30194,61058.0,61057.0,0.34663743]
[1719652186065,0.29694,61058.0,61057.0,0.34563743]
[1719652186516,0.29694,61058.0,61057.0,0.35063743]
[1719652186737,0.29694,61058.0,61057.0,0.35563743]
[1719652186976,0.29694,61058.0,61057.0,0.35063743]
[1719652187200,0.29694,61058.0,61057.0,0.33663743]
[1719652187413,0.29694,61058.0,61057.0,0.33163743]
[1719652187539,0.29694,61058.0,61057.0,0.32563743]
[1719652187740,0.29694,61058.0,61057.0,0.32963743]
[1719652187960,0.29694,61058.0,61057.0,0.33463743]
[1719652190352,0.29694,61058.0,61057.0,0.32963743]
[1719652190605,0.29694,61058.0,61057.0,0.33063743]
[1719652190858,0.29694,61058.0,61057.0,0.33463743]
[1719652193162,0.29694,61058.0,61057.0,0.33142641]
[1719652193368,0.29694,61058.0,61057.0,0.33380346]
[1719652197143,0.0133995,61066.0,61057.0,0.33380346]
[1719652197302,4.363974,61065.0,61059.0,0.08130346]
[1719652197513,0.0961,61060.0,61059.0,0.08130346]
[1719652197708,2.990181,61060.0,61059.0,0.08130346]
[1719652198926,2.990181,61060.0,61059.0,0.08230346]
[1719652199365,3.095681,61060.0,61059.0,0.08230346]